[Event "Seniors-LEM-65 Sachsen-Anhalt 2024"]
[Site "Magdeburg"]
[Date "2024.07.05"]
[Round "5.1"]
[White "Babrikowski, Peter"]
[Black "Kahe, Ralph"]
[Result "1-0"]
[ECO "B06"]
[WhiteElo "2129"]
[BlackElo "2129"]
[Annotator "NA RC"]
[PlyCount "103"]
[EventDate "2024.06.25"]
[EventType "swiss"]
[EventCountry "GER"]
[SourceTitle "playchess.com"]
[Source "ChessBase"]
[SourceQuality "1"]
[TimeControl "40/5400+30:1800+30"]

1. e4 {[%emt 0:00:05]} g6 {[%emt 0:00:05]} 2. d4 {[%emt 0:00:30]} Bg7 {[%emt 0:00:07]} 3. Nf3 {[%emt 0:00:08]} d6 {[%emt 0:00:37]} 4. Bc4 {[%emt 0:02:21]} a6 {[%emt 0:00:10]} 5. a4 {[%emt 0:00:10]} b6 {[%emt 0:00:09]} 6. O-O {[%emt 0:00:42]} e6 {[%emt 0:00:07]} 7. Nc3 {[%emt 0:01:49]} Ne7 {[%emt 0:00:50]} 8. Bf4 {[%emt 0:04:35] B06: Modern Defence.} O-O {[%emt 0:01:39]} 9. Qd2 {[%emt 0:00:23]} Nd7 {[%emt 0:00:33]} 10. Rad1 {[%emt 0:10:23]} Bb7 {[%emt 0:02:25]} 11. Bh6 {[%emt 0:02:50]} Nf6 {[%emt 0:01:58]} 12. Bxg7 {[%emt 0:00:48]} Kxg7 {[%emt 0:00:02]} 13. Qf4 {[%emt 0:00:46]} h6 {[%emt 0:06:03]} 14. d5 {[%emt 0:11:10]} e5 {[%emt 0:00:36]} 15. Qh4 {[%emt 0:00:53]} g5 {[%emt 0:00:21]} 16. Qg3 {[%emt 0:01:38]} Nh5 {[%emt 0:00:53]} 17. Qg4 {[%emt 0:00:23]} Nf4 {[%emt 0:00:08]} 18. Nd2 {[%emt 0:05:18]} Bc8 {[%emt 0:00:24]} 19. Qf3 {[%emt 0:00:41]} f5 {[%emt 0:02:22]} 20. g3 {[%emt 0:08:34]} g4 {[%emt 0:02:08]} 21. Qe3 {[%emt 0:02:41]} Nh3+ {[%emt 0:00:11]} 22. Kh1 {[%emt 0:00:31]} f4 {[%emt 0:00:16]} 23. gxf4 {[%emt 0:00:27]} Nxf4 {[%emt 0:00:12]} 24. f3 {[%emt 0:00:57] [#]} Neg6 {[%emt 0:00:08]} (24... h5 $1 $17 25. fxg4 hxg4) 25. Rg1 {[%emt 0:04:51]} Qh4 {[%emt 0:05:37]} (25... Nh3 $19 26. Rg3 h5) 26. Ne2 {[%emt 0:02:13]} Nh3 {[%emt 0:05:10]} 27. Rg2 {[%emt 0:03:43]} Ngf4 {[%emt 0:01:04]} 28. Nxf4 {[%emt 0:01:35]} Nxf4 {[%emt 0:00:08]} 29. Rgg1 {[%emt 0:02:08]} Nh3 {[%emt 0:01:03]} 30. Rg2 {[%emt 0:00:28]} Kh7 {[%emt 0:00:21]} 31. Rf1 {[%emt 0:05:46]} Nf4 {[%emt 0:05:02]} 32. Rgg1 {[%emt 0:00:27]} Rg8 {[%emt 0:00:40]} 33. Qe1 {[%emt 0:04:59]} Qh5 {[%emt 0:01:08]} 34. Rg3 {[%emt 0:01:10]} Bd7 {[%emt 0:00:34]} 35. Be2 {[%emt 0:01:12]} Bxa4 {[%emt 0:01:55]} 36. fxg4 {[%emt 0:01:32]} Qg6 {[%emt 0:01:13]} 37. Bd3 {[%emt 0:01:06]} Bd7 $2 {[%emt 0:00:49]} (37... Raf8 $11 {and Black is okay.}) 38. Rxf4 {[%emt 0:00:09]} exf4 {[%emt 0:00:16]} 39. e5 {[%emt 0:00:08]} fxg3 {[%emt 0:00:05]} 40. Bxg6+ {[%emt 0:01:17]} Rxg6 {[%emt 0:00:02]} 41. e6 {[%emt 0:30:11]} g2+ {[%emt 0:30:13]} 42. Kg1 $18 {[%emt 0:01:21]} ({Don't play} 42. Kxg2 Re8 43. Qe4 (43. exd7 Rxe1 44. d8=Q Re2+ 45. Kg3 Rxd2 $18) 43... Bc6 44. dxc6 Re7) 42... Re8 {[%emt 0:08:17]} 43. Qg3 {[%emt 0:07:23]} Bxe6 {[%emt 0:01:41]} 44. dxe6 {[%emt 0:00:13]} Rgxe6 {[%emt 0:00:07]} 45. Qd3+ {[%emt 0:00:07]} Kg8 {[%emt 0:00:55]} 46. Kxg2 {[%emt 0:00:08]} a5 {[%emt 0:00:06]} 47. Nf3 {[%emt 0:01:15]} Re2+ {[%emt 0:00:50]} 48. Kg3 {[%emt 0:00:11]} R8e7 {[%emt 0:00:10]} 49. Qg6+ {[%emt 0:00:28]} Rg7 {[%emt 0:00:56]} 50. Qxh6 {[%emt 0:00:26]} Rxc2 {[%emt 0:01:11]} 51. Qe6+ {[%emt 0:00:56]} Kf8 {[%emt 0:00:27]} 52. Qf5+ {[%emt 0:00:06]} 1-0

[Event "Seniors-LEM-65 Sachsen-Anhalt 2024"]
[Site "Magdeburg"]
[Date "2024.07.05"]
[Round "5.2"]
[White "Leibovitch, Iziaslav"]
[Black "Schnelzer, Reinhold"]
[Result "0-1"]
[ECO "A08"]
[WhiteElo "2105"]
[BlackElo "2162"]
[Annotator "RC"]
[PlyCount "42"]
[EventDate "2024.06.25"]
[EventType "swiss"]
[EventCountry "GER"]
[SourceTitle "playchess.com"]
[Source "ChessBase"]
[SourceQuality "1"]
[TimeControl "40/5400+30:1800+30"]

1. Nf3 {[%emt 0:00:05]} d5 {[%emt 0:00:10]} 2. g3 {[%emt 0:00:11]} c5 {[%emt 0:00:10]} 3. Bg2 {[%emt 0:00:11]} Nc6 {[%emt 0:00:07]} 4. O-O {[%emt 0:00:10]} e5 {[%emt 0:00:18]} 5. d3 {[%emt 0:00:19]} Nf6 {[%emt 0:00:27]} 6. Nbd2 {[%emt 0:00:50]} Be7 {[%emt 0:00:30]} 7. e4 {[%emt 0:00:12]} O-O {[%emt 0:02:38]} 8. exd5 {[%emt 0:00:51]} Nxd5 {[%emt 0:00:26]} 9. Nc4 {[%emt 0:00:13]} f6 {[%emt 0:01:57]} 10. a4 {[%emt 0:02:10]} Be6 {[%emt 0:01:09]} 11. c3 {[%emt 0:04:21]} Qd7 {[%emt 0:00:48]} 12. Qe2 {[%emt 0:05:00]} Rfe8 {[%emt 0:05:48]} 13. Re1 {[%emt 0:06:23]} Bf8 {[%emt 0:02:31]} 14. Bd2 {[%emt 0:07:30]} Rad8 {[%emt 0:02:48]} 15. Rad1 {[%emt 0:00:38]} Nb6 {[%emt 0:04:23]} 16. a5 {[%emt 0:03:46]} Nxc4 {[%emt 0:03:24]} 17. dxc4 {[%emt 0:00:22]} Nxa5 {[%emt 0:01:21]} 18. Be3 {[%emt 0:07:23]} Qf7 {[%emt 0:02:26]} 19. Nd2 {[%emt 0:17:22]} Nxc4 {[%emt 0:01:55]} 20. Ne4 {[%emt 0:03:10]} Nxe3 {[%emt 0:07:25]} 21. Qxe3 {[%emt 0:01:51]} b6 {[%emt 0:02:14]} 0-1

[Event "Seniors-LEM-65 Sachsen-Anhalt 2024"]
[Site "Magdeburg"]
[Date "2024.07.05"]
[Round "5.3"]
[White "Schober, Ralf"]
[Black "Broemel, Richard"]
[Result "1/2-1/2"]
[ECO "B15"]
[WhiteElo "2090"]
[BlackElo "2123"]
[Annotator "RC"]
[PlyCount "23"]
[EventDate "2024.06.25"]
[EventType "swiss"]
[EventCountry "GER"]
[SourceTitle "playchess.com"]
[Source "ChessBase"]
[SourceQuality "1"]
[TimeControl "40/5400+30:1800+30"]

1. e4 {[%emt 0:00:02]} c6 {[%emt 0:00:08]} 2. Nc3 {[%emt 0:01:08]} d5 {[%emt 0:00:09]} 3. Nf3 {[%emt 0:02:57]} g6 {[%emt 0:01:32]} 4. d4 {[%emt 0:02:42]} Bg7 {[%emt 0:00:13]} 5. h3 {[%emt 0:02:51]} dxe4 {[%emt 0:00:09]} 6. Nxe4 {[%emt 0:00:14]} Nd7 {[%emt 0:00:06]} 7. Bc4 {[%emt 0:04:06]} Ngf6 {[%emt 0:00:16]} 8. Nxf6+ {[%emt 0:00:06]} Nxf6 {[%emt 0:00:09]} 9. c3 {[%emt 0:00:17]} O-O {[%emt 0:01:33]} 10. O-O {[%emt 0:00:09]} Nd5 {[%emt 0:00:23]} 11. Re1 {[%emt 0:00:18]} e6 {[%emt 0:00:43]} 12. Bf1 {[%emt 0:02:00]} 1/2-1/2

[Event "Seniors-LEM-65 Sachsen-Anhalt 2024"]
[Site "Magdeburg"]
[Date "2024.07.05"]
[Round "5.4"]
[White "Koehler, Gerhard"]
[Black "Waltenberger, Udo"]
[Result "1-0"]
[ECO "A37"]
[WhiteElo "2204"]
[BlackElo "1993"]
[Annotator "RC"]
[PlyCount "51"]
[EventDate "2024.06.25"]
[EventType "swiss"]
[EventCountry "GER"]
[SourceTitle "playchess.com"]
[Source "ChessBase"]
[SourceQuality "1"]
[TimeControl "40/5400+30:1800+30"]

1. c4 {[%emt 0:00:02]} c5 {[%emt 0:00:05]} 2. Nc3 {[%emt 0:00:07]} g6 {[%emt 0:00:02]} 3. g3 {[%emt 0:01:06]} Nc6 {[%emt 0:00:04]} 4. Bg2 {[%emt 0:00:10]} Bg7 {[%emt 0:00:03]} 5. a3 {[%emt 0:00:24]} d6 {[%emt 0:00:12]} 6. Rb1 {[%emt 0:00:41]} a5 {[%emt 0:00:02]} 7. Nf3 {[%emt 0:01:11]} e5 {[%emt 0:02:09]} 8. d3 {[%emt 0:00:44]} Nge7 {[%emt 0:00:04]} 9. Nd2 {[%emt 0:00:19]} Be6 {[%emt 0:02:09]} 10. Nf1 {[%emt 0:06:46]} d5 {[%emt 0:00:13]} 11. cxd5 {[%emt 0:00:11]} Nxd5 {[%emt 0:00:02]} 12. Ne3 {[%emt 0:00:11]} Nde7 {[%emt 0:00:06]} 13. O-O {[%emt 0:00:30]} O-O {[%emt 0:00:05]} 14. Nc4 {[%emt 0:02:55]} Rb8 {[%emt 0:00:17]} 15. Nb5 {[%emt 0:02:41]} Nd4 {[%emt 0:04:13]} 16. Nxd4 {[%emt 0:01:07]} cxd4 {[%emt 0:01:12]} 17. Bd2 {[%emt 0:01:39]} b6 {[%emt 0:04:34]} 18. b4 {[%emt 0:02:23]} axb4 {[%emt 0:04:39]} 19. Bxb4 {[%emt 0:03:15]} Qd7 {[%emt 0:13:33]} 20. Bd6 {[%emt 0:22:04]} Bxc4 {[%emt 0:00:22]} 21. Bxb8 {[%emt 0:00:02]} Bb5 {[%emt 0:00:11]} 22. Qb3 {[%emt 0:00:48]} Rxb8 {[%emt 0:04:39]} 23. Qxb5 {[%emt 0:00:25]} Qd6 {[%emt 0:00:09]} 24. a4 {[%emt 0:00:32]} Nc8 {[%emt 0:01:45]} 25. Rfc1 {[%emt 0:02:53]} Bf8 {[%emt 0:00:31]} 26. a5 {[%emt 0:50:24]} 1-0

[Event "Seniors-LEM-65 Sachsen-Anhalt 2024"]
[Site "Magdeburg"]
[Date "2024.07.05"]
[Round "5.5"]
[White "Okrajek, Alexander"]
[Black "Christen, Pierre"]
[Result "1-0"]
[ECO "D04"]
[WhiteElo "2163"]
[BlackElo "1946"]
[Annotator "RC"]
[PlyCount "75"]
[EventDate "2024.06.25"]
[EventType "swiss"]
[EventCountry "GER"]
[SourceTitle "playchess.com"]
[Source "ChessBase"]
[SourceQuality "1"]
[TimeControl "40/5400+30:1800+30"]

1. d4 {[%emt 0:00:07]} d5 {[%emt 0:00:08]} 2. Nf3 {[%emt 0:00:27]} Nf6 {[%emt 0:00:53]} 3. e3 {[%emt 0:01:21]} c6 {[%emt 0:00:52]} 4. Nbd2 {[%emt 0:00:58]} Bf5 {[%emt 0:00:57]} 5. Bd3 {[%emt 0:02:12]} e6 {[%emt 0:03:45]} 6. Bxf5 {[%emt 0:02:02]} exf5 {[%emt 0:00:13]} 7. O-O {[%emt 0:00:12]} Bd6 {[%emt 0:00:33]} 8. c4 {[%emt 0:00:44]} O-O {[%emt 0:00:35]} 9. Qc2 {[%emt 0:04:30]} g6 {[%emt 0:03:05]} 10. Rb1 {[%emt 0:02:11]} Qe7 {[%emt 0:04:20]} 11. c5 {[%emt 0:02:04]} Bc7 {[%emt 0:00:01]} 12. b4 {[%emt 0:00:41]} a6 {[%emt 0:01:31]} 13. a4 {[%emt 0:00:58]} Ne4 {[%emt 0:04:11]} 14. b5 {[%emt 0:05:43]} axb5 {[%emt 0:03:40]} 15. axb5 {[%emt 0:00:07]} cxb5 {[%emt 0:00:34]} 16. Rxb5 {[%emt 0:01:52]} Nc6 {[%emt 0:02:05]} 17. g3 {[%emt 0:05:50]} Rfb8 {[%emt 0:02:14]} 18. Nxe4 {[%emt 0:08:52]} fxe4 {[%emt 0:04:25]} 19. Nd2 {[%emt 0:05:18]} Qd7 {[%emt 0:04:05]} 20. Qb1 {[%emt 0:03:05]} Nd8 {[%emt 0:06:22]} 21. Kg2 {[%emt 0:04:57]} Ne6 {[%emt 0:05:48]} 22. f4 {[%emt 0:06:24]} Ba5 {[%emt 0:04:05]} 23. Rf2 {[%emt 0:07:55]} Bxd2 {[%emt 0:07:47]} 24. Bxd2 {[%emt 0:02:08]} Ra7 {[%emt 0:01:44]} 25. Rb6 {[%emt 0:02:08]} Ng7 {[%emt 0:04:36]} 26. Qb3 {[%emt 0:05:26]} Ne8 {[%emt 0:04:27]} 27. h3 {[%emt 0:02:58]} Rba8 {[%emt 0:00:38]} 28. Bc1 {[%emt 0:00:23]} Ra1 {[%emt 0:07:34]} 29. Rxb7 {[%emt 0:01:55]} Qe6 {[%emt 0:01:47]} 30. Rb6 {[%emt 0:01:53]} Qe7 {[%emt 0:05:56]} 31. Bb2 {[%emt 0:02:06]} Re1 {[%emt 0:00:21]} 32. Qxd5 {[%emt 0:02:32]} Rd8 {[%emt 0:02:39]} 33. Rb7 {[%emt 0:02:44]} Rxd5 {[%emt 0:02:50]} 34. Rxe7 {[%emt 0:00:11]} Rd8 {[%emt 0:02:48]} 35. Rxe4 {[%emt 0:01:16]} Nf6 {[%emt 0:00:56]} 36. Re5 {[%emt 0:00:45]} Nd5 {[%emt 0:01:00]} 37. Kf3 {[%emt 0:01:25]} Nb4 {[%emt 0:00:33]} 38. Bc3 {[%emt 0:00:39]} 1-0

[Event "Seniors-LEM-65 Sachsen-Anhalt 2024"]
[Site "Magdeburg"]
[Date "2024.07.05"]
[Round "5.7"]
[White "Kolthoff, Siegmund"]
[Black "Poetke, Dan-Peter"]
[Result "1/2-1/2"]
[ECO "A16"]
[WhiteElo "2090"]
[BlackElo "1968"]
[Annotator "NA RC"]
[PlyCount "79"]
[EventDate "2024.06.25"]
[EventType "swiss"]
[EventCountry "GER"]
[SourceTitle "playchess.com"]
[Source "ChessBase"]
[SourceQuality "1"]
[TimeControl "40/5400+30:1800+30"]

1. c4 {[%emt 0:00:03]} Nf6 {[%emt 0:00:06]} 2. Nc3 {[%emt 0:00:08]} d5 {[%emt 0:01:00]} 3. cxd5 {[%emt 0:00:12]} Nxd5 {[%emt 0:00:03]} 4. g3 {[%emt 0:00:11]} c6 {[%emt 0:02:14]} 5. Nf3 {[%emt 0:03:49]} Bg4 {[%emt 0:01:43]} 6. Bg2 {[%emt 0:00:20] A16: English Opening: 1...Nf6 with ...d5.} e6 {[%emt 0:00:51]} 7. O-O {[%emt 0:04:36]} Nd7 {[%emt 0:02:09]} 8. d4 {[%emt 0:11:00]} Be7 {[%emt 0:03:12]} 9. e4 {[%emt 0:06:20]} N5b6 {[%emt 0:01:39]} 10. Qb3 {[%emt 0:04:09]} O-O {[%emt 0:03:04]} 11. Be3 {[%emt 0:02:56]} Bxf3 {[%emt 0:04:59]} 12. Bxf3 {[%emt 0:00:12]} Bg5 {[%emt 0:00:02]} 13. Rfe1 {[%emt 0:03:36]} Bxe3 {[%emt 0:00:29]} 14. Rxe3 {[%emt 0:00:10]} Qf6 {[%emt 0:06:59]} 15. Rd1 {[%emt 0:02:47]} Rfe8 {[%emt 0:07:54]} 16. e5 {[%emt 0:02:30]} Qe7 {[%emt 0:03:30]} 17. Ne4 {[%emt 0:01:01]} Nd5 {[%emt 0:04:24]} 18. Re2 {[%emt 0:01:50]} Qb4 {[%emt 0:03:18]} 19. Qc2 {[%emt 0:01:12]} N7b6 {[%emt 0:01:33]} 20. Nd6 {[%emt 0:02:12]} Re7 {[%emt 0:00:13]} 21. Re4 {[%emt 0:07:06]} (21. Rd3 $16) 21... f5 {[%emt 0:51:38]} (21... Rd7 $14) 22. Re2 {[%emt 0:08:22]} Rf8 {[%emt 0:00:00]} 23. Red2 {[%emt 0:02:42]} Qa5 {[%emt 0:00:00]} 24. a3 {[%emt 0:03:02]} Nc8 {[%emt 0:00:00]} 25. Nc4 {[%emt 0:02:49]} (25. Qc5 $142 Qb6 26. Bxd5 exd5 27. f4) 25... Qd8 {[%emt 0:00:00]} 26. b4 {[%emt 0:01:02]} g5 $11 {[%emt 0:00:00]} 27. Rb1 {[%emt 0:02:38]} g4 {[%emt 0:00:00]} 28. Bxd5 {[%emt 0:04:58]} Qxd5 {[%emt 0:00:00]} 29. Ne3 {[%emt 0:00:31]} Qd7 {[%emt 0:00:00]} 30. a4 {[%emt 0:02:22]} a6 {[%emt 0:00:00]} 31. Qc5 {[%emt 0:01:47]} Rg7 {[%emt 0:00:00]} 32. Ng2 {[%emt 0:01:21]} Qd5 {[%emt 0:00:00]} 33. Qxd5 {[%emt 0:04:13]} cxd5 {[%emt 0:00:00]} 34. Nf4 {[%emt 0:00:21]} Re7 {[%emt 0:00:00]} 35. b5 {[%emt 0:01:36]} axb5 {[%emt 0:00:00]} 36. axb5 {[%emt 0:07:26]} Nb6 {[%emt 0:00:00]} 37. Rc2 {[%emt 0:01:24]} Ra8 {[%emt 0:00:00]} 38. Rbc1 {[%emt 0:01:42]} Nc4 {[%emt 0:00:00]} 39. Rc3 {[%emt 0:01:20]} Kf7 {[%emt 0:00:00]} 40. Rb3 {[%emt 0:01:18]} 1/2-1/2

[Event "Seniors-LEM-65 Sachsen-Anhalt 2024"]
[Site "Magdeburg"]
[Date "2024.07.05"]
[Round "5.8"]
[White "Wolff, Stefan"]
[Black "Waagener, Ulrich"]
[Result "1/2-1/2"]
[ECO "B13"]
[WhiteElo "1956"]
[BlackElo "2080"]
[Annotator "NA RC"]
[PlyCount "63"]
[EventDate "2024.06.25"]
[EventType "swiss"]
[EventCountry "GER"]
[SourceTitle "playchess.com"]
[Source "ChessBase"]
[SourceQuality "1"]
[TimeControl "40/5400+30:1800+30"]

1. c4 {[%emt 0:00:02]} c6 {[%emt 0:00:34]} 2. e4 {[%emt 0:00:36]} d5 {[%emt 0:00:27]} 3. exd5 {[%emt 0:00:05]} cxd5 {[%emt 0:00:26]} 4. d4 {[%emt 0:00:06]} Nf6 {[%emt 0:00:34]} 5. Nc3 {[%emt 0:00:07]} Nc6 {[%emt 0:01:06]} 6. Bf4 {[%emt 0:00:47]} Be6 {[%emt 0:05:01] has lost popularity (6...a6). B13: Caro-Kann: Exchange Variation and Panov-Botvinnik Attack.} 7. c5 {[%emt 0:05:46]} Qd7 $146 {[%emt 0:01:30]} ({Predecessor:} 7... g6 8. Bb5 Bg7 9. f3 O-O 10. Nge2 Bd7 11. O-O Re8 12. Re1 Nh5 13. Bg5 h6 14. Bh4 {½-½ Timofeev,A (2641)-Grachev,B (2680) RUS-ch Higher League 65th 2012 (3)}) 8. Bb5 {[%emt 0:01:30]} a6 {[%emt 0:01:30]} 9. Ba4 {[%emt 0:02:39]} Bg4 {[%emt 0:03:21]} 10. f3 {[%emt 0:06:54]} Bf5 {[%emt 0:02:05]} 11. Nge2 {[%emt 0:02:50]} e6 {[%emt 0:01:45]} 12. O-O {[%emt 0:04:14]} Be7 {[%emt 0:01:48]} 13. b4 {[%emt 0:06:24]} O-O {[%emt 0:02:23]} 14. a3 {[%emt 0:03:43]} Ne8 {[%emt 0:05:00]} 15. Bc2 {[%emt 0:01:13]} Bxc2 {[%emt 0:04:58]} 16. Qxc2 {[%emt 0:00:31]} Bf6 {[%emt 0:03:13]} 17. Rad1 {[%emt 0:04:21]} g6 {[%emt 0:03:19]} 18. Rfe1 {[%emt 0:07:13]} Ng7 {[%emt 0:01:32]} 19. g4 {[%emt 0:05:23]} Bh4 {[%emt 0:04:39]} (19... g5 $11 20. Bg3 h5) 20. Ng3 {[%emt 0:03:38]} f5 {[%emt 0:05:39]} 21. g5 {[%emt 0:06:58]} h6 {[%emt 0:02:46]} 22. gxh6 {[%emt 0:11:06]} Nh5 {[%emt 0:00:47]} 23. Bd6 {[%emt 0:02:12]} Kh7 {[%emt 0:06:08]} 24. Re2 {[%emt 0:02:44]} (24. Bxf8 $16 Rxf8 25. Nce2) 24... Be7 {[%emt 0:02:29]} 25. Bxe7 {[%emt 0:04:13]} Nxe7 {[%emt 0:00:38] [#]} 26. Rde1 $11 {[%emt 0:01:13]} (26. Na4 $1 $18 {[%cal Ra4b6]} Rad8 (26... Nf4 $2 27. Nb6 $18) 27. Nxh5 gxh5 28. Nb2) 26... Nf4 {[%emt 0:02:32]} 27. Re3 {[%emt 0:02:02]} g5 {[%emt 0:05:07]} 28. Nge2 {[%emt 0:02:30]} Neg6 {[%emt 0:01:41]} 29. Nxf4 {[%emt 0:02:07]} Nxf4 {[%emt 0:00:10]} 30. Ne2 {[%emt 0:00:31]} Rae8 {[%emt 0:05:18]} 31. Nxf4 {[%emt 0:01:23]} gxf4 {[%emt 0:00:08]} 32. Re5 {[%emt 0:00:25]} 1/2-1/2

[Event "Seniors-LEM-65 Sachsen-Anhalt 2024"]
[Site "Magdeburg"]
[Date "2024.07.05"]
[Round "5.9"]
[White "Ruether, Rudolf"]
[Black "Cordes, Lothar"]
[Result "1/2-1/2"]
[ECO "E17"]
[WhiteElo "2065"]
[BlackElo "1858"]
[Annotator "NA RC"]
[PlyCount "56"]
[EventDate "2024.06.25"]
[EventType "swiss"]
[EventCountry "GER"]
[SourceTitle "playchess.com"]
[Source "ChessBase"]
[SourceQuality "1"]
[TimeControl "40/5400+30:1800+30"]

1. d4 {[%emt 0:00:06]} Nf6 {[%emt 0:00:06]} 2. Nf3 {[%emt 0:01:06]} e6 {[%emt 0:00:14]} 3. g3 {[%emt 0:00:11]} b6 {[%emt 0:00:08]} 4. Bg2 {[%emt 0:00:08]} Bb7 {[%emt 0:00:05]} 5. O-O {[%emt 0:00:08]} Be7 {[%emt 0:00:23]} 6. c4 {[%emt 0:00:09]} O-O {[%emt 0:00:23]} 7. b3 {[%emt 0:01:44]} d5 {[%emt 0:00:49]} 8. Bb2 {[%emt 0:00:52]} Nbd7 {[%emt 0:00:39]} 9. cxd5 {[%emt 0:03:30]} exd5 {[%emt 0:00:34]} 10. Nc3 {[%emt 0:00:52]} Re8 {[%emt 0:01:35]} 11. Rc1 {[%emt 0:01:10]} c6 {[%emt 0:04:15]} 12. Re1 {[%emt 0:02:01] E17: Queen's Indian: 4 g3 Bb7 5 Bg2 Be7.} Bd6 {[%emt 0:01:59]} 13. Nd2 {[%emt 0:05:12]} c5 {[%emt 0:04:41]} 14. e4 {[%emt 0:20:15]} cxd4 {[%emt 0:02:28]} 15. Nxd5 {[%emt 0:01:55]} Nxd5 {[%emt 0:05:20]} 16. exd5 {[%emt 0:00:13]} Rxe1+ {[%emt 0:13:16]} 17. Qxe1 {[%emt 0:00:30]} Nc5 {[%emt 0:01:02]} 18. Bf1 {[%emt 0:13:08]} Bxd5 {[%emt 0:01:07]} 19. Bxd4 {[%emt 0:01:09]} Ne6 {[%emt 0:05:29]} 20. Be3 {[%emt 0:05:07]} Bb4 {[%emt 0:01:36]} 21. Qe2 {[%emt 0:08:28]} Ng5 {[%emt 0:09:07]} 22. Bxg5 {[%emt 0:21:00]} Qxg5 {[%emt 0:00:08]} 23. Rc2 {[%emt 0:00:15]} Qf5 {[%emt 0:04:10]} 24. Nc4 {[%emt 0:00:32]} Bf3 {[%emt 0:02:59]} 25. Ne3 $11 {[%emt 0:01:14]} Qe4 {[%emt 0:00:55]} 26. Qc4 {[%emt 0:01:57]} Bc5 {[%emt 0:04:43]} 27. Qxe4 {[%emt 0:04:59]} Bxe4 {[%emt 0:00:09]} 28. Rd2 {[%emt 0:00:01]} Bxe3 {[%emt 0:04:56]} 1/2-1/2

[Event "Seniors-LEM-65 Sachsen-Anhalt 2024"]
[Site "Magdeburg"]
[Date "2024.07.05"]
[Round "5.10"]
[White "Bregler, Herbert"]
[Black "Krueger, Wolfgang"]
[Result "1/2-1/2"]
[ECO "B15"]
[WhiteElo "1952"]
[BlackElo "2054"]
[Annotator "RC"]
[PlyCount "30"]
[EventDate "2024.06.25"]
[EventType "swiss"]
[EventCountry "GER"]
[SourceTitle "playchess.com"]
[Source "ChessBase"]
[SourceQuality "1"]
[TimeControl "40/5400+30:1800+30"]

1. d4 {[%emt 0:00:11]} g6 {[%emt 0:00:20]} 2. e4 {[%emt 0:01:36]} c6 {[%emt 0:00:49]} 3. Nf3 {[%emt 0:06:46]} Bg7 {[%emt 0:01:24]} 4. Nc3 {[%emt 0:03:47]} d5 {[%emt 0:00:26]} 5. Be2 {[%emt 0:03:28]} Nh6 {[%emt 0:03:25]} 6. Bf4 {[%emt 0:05:51]} f6 {[%emt 0:01:18]} 7. Qd2 {[%emt 0:07:01]} Nf7 {[%emt 0:00:17]} 8. exd5 {[%emt 0:04:32]} cxd5 {[%emt 0:00:09]} 9. O-O {[%emt 0:01:50]} O-O {[%emt 0:02:47]} 10. Rad1 {[%emt 0:11:34]} a6 {[%emt 0:00:41]} 11. Na4 {[%emt 0:03:03]} Nc6 {[%emt 0:16:54]} 12. c4 {[%emt 0:06:27]} dxc4 {[%emt 0:18:08]} 13. Bxc4 {[%emt 0:01:27]} b5 {[%emt 0:09:32]} 14. Bxf7+ {[%emt 0:01:00]} Rxf7 {[%emt 0:00:17]} 15. d5 {[%emt 0:05:56]} Ne5 {[%emt 0:13:35]} 1/2-1/2

[Event "Seniors-LEM-65 Sachsen-Anhalt 2024"]
[Site "Magdeburg"]
[Date "2024.07.05"]
[Round "5.11"]
[White "Krieg, Peter"]
[Black "Jacob, Helmut"]
[Result "0-1"]
[ECO "B27"]
[WhiteElo "1920"]
[BlackElo "2047"]
[Annotator "NA RC"]
[PlyCount "56"]
[EventDate "2024.06.25"]
[EventType "swiss"]
[EventCountry "GER"]
[SourceTitle "playchess.com"]
[Source "ChessBase"]
[SourceQuality "1"]
[TimeControl "40/5400+30:1800+30"]

1. e4 {[%emt 0:00:04]} c5 {[%emt 0:00:06]} 2. Nf3 {[%emt 0:00:06]} Nc6 {[%emt 0:00:05]} 3. Bc4 {[%emt 0:00:22]} d6 {[%emt 0:01:43]} 4. O-O {[%emt 0:00:44]} g6 {[%emt 0:01:20]} 5. c3 {[%emt 0:00:18]} Bg7 {[%emt 0:03:20]} 6. h3 {[%emt 0:03:32]} Nf6 {[%emt 0:01:07]} 7. Re1 {[%emt 0:00:17]} O-O {[%emt 0:00:13] B27: Sicilian: 2 Nf3, unusual Black 2nd moves.} 8. Na3 {[%emt 0:08:45]} Nxe4 {[%emt 0:05:48]} 9. Rxe4 {[%emt 0:11:11]} d5 {[%emt 0:00:06]} 10. Re1 {[%emt 0:08:05]} dxc4 {[%emt 0:00:07]} 11. Nxc4 {[%emt 0:00:16]} Qd5 {[%emt 0:03:38]} 12. Qe2 {[%emt 0:05:34]} b6 {[%emt 0:03:28]} 13. Ne3 {[%emt 0:11:23]} Qd7 {[%emt 0:01:30]} 14. Nc2 {[%emt 0:01:08]} e5 {[%emt 0:03:00]} 15. b3 {[%emt 0:06:42]} Bb7 {[%emt 0:01:57]} 16. Bb2 {[%emt 0:01:15]} Rad8 {[%emt 0:09:50]} 17. Red1 {[%emt 0:01:37]} (17. d4 $17 {might work better.}) 17... Rfe8 {[%emt 0:03:39]} 18. a3 {[%emt 0:09:24]} e4 {[%emt 0:04:35]} 19. Nfe1 {[%emt 0:01:01]} Ne5 {[%emt 0:02:01]} 20. Ne3 {[%emt 0:01:59]} f5 {[%emt 0:07:28]} 21. f4 {[%emt 0:10:46]} exf3 {[%emt 0:01:59]} 22. gxf3 {[%emt 0:00:16]} f4 {[%emt 0:00:37]} 23. d4 {[%emt 0:02:20]} Nf7 $19 {[%emt 0:08:37]} (23... Nxf3+ $142 24. Nxf3 Rxe3 (24... fxe3 $2 25. Kg2 $19) 25. Qc4+ Bd5) 24. dxc5 {[%emt 0:01:07]} Qe7 {[%emt 0:05:10]} 25. c6 {[%emt 0:14:48]} Rxd1 {[%emt 0:02:03]} 26. Rxd1 {[%emt 0:00:00]} Bxc6 {[%emt 0:00:28]} 27. Qc4 {[%emt 0:00:00]} Qxe3+ {[%emt 0:00:12]} 28. Kg2 {[%emt 0:00:00]} Qe2+ {[%emt 0:00:38]} 0-1